bitfinex/quotes_SOLUSD_20240612
["timestamp","ask_amount","ask_price","bid_price","bid_amount"]
[1718154918442,2.5085,147.5,147.48,6.1208]
[1718154918634,2.5085,147.5,147.46,6.1208]
[1718154919120,2.5086,147.49,147.46,6.1208]
[1718154919719,2.5084,147.51,147.46,8.6299]
[1718154920336,2.5084,147.5,147.46,8.6299]
[1718154920914,2.5084,147.51,147.46,8.6299]
[1718154921441,2.5084,147.51,147.47,2.5089]
[1718154921754,2045.7466,147.57,147.5,2.5083]
[1718154921917,2.5077,147.55,147.51,2.5082]
[1718154922420,2.5077,147.55,147.5,2.5084]
[1718154922624,2.5077,147.55,147.5,9.0242]
[1718154922831,2023.18,147.57,147.5,6.5158]
[1718154923138,2.5076,147.55,147.51,2.5082]
[1718154923345,2023.18,147.57,147.51,2.5082]
[1718154923540,2.5075,147.56,147.51,9.024]
[1718154923725,1990.976,147.5,147.49,5.1871]
[1718154923934,1990.976,147.5,147.49,8.2057]
[1718154924242,1990.976,147.5,147.49,28.4657]
[1718154926744,1990.976,147.5,147.49,34.7179]
[1718154927747,1990.976,147.5,147.49,42.2438]
[1718154928446,1990.976,147.5,147.49,67.3425]
[1718154928648,1956.6751,147.5,147.49,152.2783]
[1718154928960,1956.6751,147.5,147.49,72.2783]
[1718154929326,1956.6751,147.5,147.49,172.2783]
[1718154934633,1956.6751,147.5,147.49,51.5983]
[1718154937271,1956.6751,147.5,147.49,51.7683]
[1718154937441,1956.6751,147.5,147.49,52.2783]
[1718154942262,1956.6751,147.5,147.49,8.2057]
[1718154942568,1956.6751,147.5,147.49,2.6786]
[1718154943067,1956.6751,147.5,147.48,2.5087]
[1718154943366,1956.6751,147.5,147.48,2.5088]
[1718154943864,1956.6751,147.5,147.49,2.5086]
[1718154946646,1956.6751,147.5,147.48,2.5087]
[1718154947276,1956.6751,147.5,147.44,0.8418073]
[1718154947277,6.4944,147.49,147.44,0.8418073]
[1718154947569,6.4944,147.48,147.44,0.8418073]
[1718154947860,6.4944,147.48,147.45,2.5093]
[1718154948064,9.0032,147.48,147.44,0.8418073]
[1718154948257,6.4944,147.48,147.44,0.8418073]
[1718154948446,6.4944,147.48,147.46,2.5091]
[1718154948843,2.5089,147.48,147.44,0.8418073]
[1718154949172,9.0033,147.48,147.44,3.3512073]
[1718154949842,1973.1144,147.5,147.44,0.8418073]
[1718154950259,1973.1144,147.5,147.45,5.0185]
[1718154950643,1973.1144,147.5,147.47,2.5088]
[1718154950871,1973.1144,147.5,147.46,2.509]
[1718154951043,1973.1144,147.5,147.47,2.5089]
[1718154953664,1973.1144,147.5,147.44,23.4269073]
[1718154953665,2.5089,147.48,147.44,0.8418073]
[1718154953850,2.5089,147.48,147.44,3.3512073]
[1718154954473,2.5089,147.48,147.44,0.8418073]
[1718154954771,9.015,147.49,147.44,3.3512073]
[1718154954942,6.5063,147.49,147.46,2.5091]
[1718154955147,6.5063,147.49,147.45,2.5092]
[1718154955879,6.5063,147.49,147.46,2.5091]
[1718154956079,1975.6229,147.5,147.46,2.5091]
[1718154956974,1973.1144,147.5,147.47,2.5089]
[1718154957265,1975.6229,147.5,147.46,2.5091]
[1718154957778,1973.1144,147.5,147.47,2.5089]
[1718154958484,1973.1144,147.5,147.46,2.509]
[1718154959683,1973.1144,147.5,147.47,2.5089]
[1718154960255,1973.1144,147.5,147.46,2.509]
[1718154961184,1973.1144,147.5,147.47,2.5089]
[1718154961505,1956.6751,147.5,147.49,2.5086]
[1718154961662,1956.6751,147.5,147.48,2.6787]
[1718154961853,1956.6751,147.5,147.48,2.5087]
[1718154962256,1956.6751,147.5,147.49,2.5086]
[1718154963960,1956.6751,147.5,147.49,2.8486]
[1718154964167,1956.6751,147.5,147.49,8.2058]
[1718154964981,1956.6751,147.5,147.49,52.5127]
[1718154965195,1956.6751,147.5,147.49,152.5127]
[1718154967083,1956.6751,147.5,147.49,172.5127]
[1718154968897,1956.6751,147.5,147.49,152.5127]
[1718154972406,1956.3151,147.5,147.49,175.6927]
[1718154972569,1950.83503778,147.5,147.49,195.6927]
[1718154972765,1950.47503778,147.5,147.49,205.6927]
[1718154972993,1738.50503778,147.5,147.49,259.5627]
[1718154973194,1706.30843778,147.5,147.49,269.5627]
[1718154973497,1686.05843778,147.5,147.49,272.30267965]
[1718154973723,1665.70843778,147.5,147.49,272.30267965]
[1718154974024,1625.00843778,147.5,147.49,272.30267965]
[1718154974395,1604.65843778,147.5,147.49,272.30267965]
[1718154974597,1578.93843778,147.5,147.49,249.12267965]
[1718154974932,1556.55571421,147.5,147.49,272.30267965]
[1718154975236,1536.20571421,147.5,147.49,239.12267965]
[1718154975394,1536.20571421,147.5,147.49,197.75267965]
[1718154975596,1536.20571421,147.5,147.49,45.3462]
[1718154976425,1536.20571421,147.5,147.49,22.7686]
[1718154976745,1536.20571421,147.5,147.49,2.5086]
[1718154977046,1542.55331421,147.5,147.46,2.5091]
[1718154977203,6.5413,147.49,147.45,2.5093]
[1718154977409,6.5413,147.48,147.44,0.8418073]
[1718154977617,1536.20571421,147.5,147.49,2.5086]
[1718154978900,1536.20571421,147.5,147.49,2.8486]
[1718154979102,1536.20571421,147.5,147.49,25.7662]
[1718154980034,1536.20571421,147.5,147.49,3.1886]
[1718154980615,1536.20571421,147.5,147.49,8.2058]
[1718154981612,1536.20571421,147.5,147.49,3.1886]
[1718154981813,1536.20571421,147.5,147.44,21.1818073]
[1718154981814,1536.20571421,147.5,147.44,5.8607073]
[1718154982037,1542.67261421,147.5,147.46,2.509]
[1718154982207,6.4669,147.48,147.46,2.509]
[1718154982414,6.4669,147.48,147.45,2.5092]
[1718154983342,6.4669,147.47,147.44,0.8418073]
[1718154983541,2.5087,147.49,147.44,3.3512073]
[1718154983748,6.4669,147.48,147.44,3.3512073]
[1718154984242,2.5088,147.48,147.44,0.8418073]
[1718154984615,6.4669,147.48,147.44,3.3512073]
[1718154984822,2.5086,147.49,147.44,3.3512073]
[1718154985044,6.4669,147.47,147.44,3.3512073]
[1718154985343,2.5088,147.48,147.44,0.8418073]
[1718154985512,1552.35671421,147.5,147.45,2.5093]
[1718154985513,6.0968,147.49,147.45,2.5093]
[1718154985720,1554.86521421,147.5,147.44,3.3512073]
[1718154985925,2.5086,147.49,147.44,3.3512073]
[1718154986136,6.0968,147.48,147.44,3.3512073]
[1718154986418,6.0968,147.48,147.46,2.5091]
[1718154986615,6.6562,147.49,147.44,0.8418073]
[1718154986843,9.1648,147.49,147.44,3.3512073]
[1718154987021,2.5086,147.49,147.44,3.3512073]
[1718154987617,6.6562,147.48,147.44,3.3512073]
[1718154987816,2.5086,147.49,147.44,3.3512073]
[1718154988238,6.6562,147.48,147.44,0.8418073]
[1718154988414,1554.86521421,147.5,147.45,2.5092]
[1718154988611,6.4984,147.48,147.45,2.5092]
[1718154989636,6.4984,147.48,147.46,2.5091]
[1718154990047,6.2252,147.49,147.44,0.8418073]
[1718154990359,1554.86521421,147.5,147.44,0.8418073]
[1718154990360,2.5089,147.48,147.44,0.8418073]
[1718154990659,6.0475,147.47,147.44,0.8418073]
[1718154991028,6.5586,147.48,147.44,0.8418073]
[1718154991350,6.5586,147.46,147.44,0.8418073]
[1718154991520,2.5091,147.47,147.44,0.8418073]
[1718154991724,6.5586,147.45,147.44,0.8418073]
[1718154992134,2.5091,147.47,147.44,0.8418073]
[1718154992933,2.5088,147.48,147.44,0.8418073]
[1718154993333,2.509,147.47,147.44,0.8418073]
[1718154995123,2.5088,147.48,147.44,0.8418073]
[1718154995328,1554.86521421,147.5,147.44,0.8418073]
[1718154995536,1554.86521421,147.5,147.45,2.5092]
[1718154996151,2.5086,147.49,147.45,2.5092]
[1718154996655,1554.86521421,147.5,147.45,2.5092]
[1718154997029,2.5086,147.49,147.44,3.3512073]
[1718154997351,2.5089,147.47,147.44,0.8418073]
[1718154997536,1552.35671421,147.5,147.44,0.8418073]
[1718154997742,2.509,147.47,147.44,0.8418073]
[1718154998041,2.5088,147.48,147.44,0.8418073]
[1718154998237,2.509,147.47,147.44,0.8418073]
[1718154999758,17.5606,147.49,147.44,0.8418073]
[1718154999970,5.0176,147.48,147.44,0.8418073]
[1718155000159,2.5093,147.46,147.44,0.8418073]
[1718155000365,1552.35671421,147.5,147.44,0.8418073]
[1718155000671,41.1674,147.45,147.44,0.8418073]
[1718155000877,41.1674,147.45,147.37,2.5105]
[1718155000878,2.5099,147.42,147.37,2.5105]
[1718155001236,2.5099,147.42,147.38,2.5105]
[1718155001440,2.5098,147.42,147.37,2.5106]
[1718155002059,2.5098,147.42,147.38,2.5104]
[1718155003351,2.5098,147.42,147.34,7.5334]
[1718155003352,2.51,147.41,147.37,2.5106]
[1718155004366,12.5475,147.44,147.37,2.5106]
[1718155004545,2.5099,147.42,147.37,2.5106]
[1718155005045,5.0199,147.42,147.33,0.17]
[1718155005253,2.51,147.41,147.37,2.5106]
[1718155006147,23.21,147.43,147.33,0.68]
[1718155006346,30.7394,147.43,147.33,0.51]
[1718155006859,2.5102,147.4,147.36,2.5107]
[1718155007180,2.5104,147.39,147.34,2.5111]
[1718155007344,2.5107,147.37,147.29,19.2796073]
[1718155007543,2.5107,147.37,147.32,2.5114]
[1718155007879,2.5107,147.37,147.32,2.5115]
[1718155008058,2.5107,147.37,147.33,2.5113]
[1718155008255,15.1082,147.38,147.3,2.5117]
[1718155008562,17.6188,147.38,147.34,2.5111]
[1718155008975,17.6188,147.38,147.33,2.5113]
[1718155009283,2.5107,147.37,147.3,5.0237]
[1718155009456,2.5107,147.37,147.33,2.5113]
[1718155009645,15.1082,147.38,147.34,2.5111]
[1718155010373,15.1082,147.38,147.37,2.5106]
[1718155010580,15.1082,147.42,147.37,2.5106]
[1718155010798,17.6181,147.42,147.37,2.5106]
[1718155011155,15.1082,147.42,147.38,2.5104]
[1718155011477,17.6181,147.42,147.38,2.5104]
[1718155011979,15.1082,147.42,147.39,2.5102]
[1718155012178,17.618,147.42,147.38,2.5104]
[1718155012671,2.51,147.41,147.37,2.5106]
[1718155012863,2.5106,147.38,147.32,0.17]
[1718155013179,15.1082,147.42,147.31,12.7281]
[1718155013180,2.5104,147.39,147.34,2.5111]
[1718155013351,5.0201,147.41,147.34,2.5111]
[1718155013685,5.0201,147.41,147.32,5.023]
[1718155013686,2.5107,147.37,147.32,2.5114]
[1718155013849,2.5107,147.37,147.33,2.5113]
[1718155014885,15.1082,147.42,147.29,3.3537073]
[1718155015059,5.0217,147.37,147.29,0.8418073]
[1718155015251,5.0208,147.39,147.31,2.5116]
[1718155015452,2.511,147.35,147.31,2.5116]
[1718155016066,5.0203,147.4,147.31,5.0232]
[1718155016368,2.5108,147.36,147.32,2.5114]
[1718155017373,2.511,147.35,147.31,2.5116]
[1718155017571,2.5109,147.36,147.31,2.5116]
[1718155018078,2.5109,147.36,147.32,2.5115]
[1718155018981,20.85,147.41,147.29,0.8418073]
[1718155019166,2.5114,147.33,147.29,3.3537073]
[1718155019360,22.5967,147.37,147.29,0.8418073]
[1718155019559,2.5112,147.34,147.3,2.5118]
[1718155020079,2.5111,147.35,147.3,2.5118]
[1718155020278,22.5967,147.37,147.3,2.5118]
[1718155020279,2.5113,147.34,147.3,2.5118]
[1718155020459,2.5113,147.34,147.29,0.8418073]
[1718155020460,15.4603,147.33,147.29,0.8418073]
[1718155020772,2.5118,147.31,147.29,0.8418073]
[1718155021157,2.5118,147.3,147.29,0.8418073]
[1718155021354,2.5118,147.31,147.29,0.8418073]
[1718155022293,2.5118,147.3,147.29,0.8418073]
[1718155023277,2.5117,147.32,147.29,0.8418073]
[1718155023492,2.5117,147.31,147.29,0.8418073]
[1718155024285,2.5116,147.32,147.29,0.8418073]
[1718155025274,2.5117,147.31,147.29,0.8418073]
[1718155031068,2.5116,147.32,147.29,0.8418073]
[1718155031287,2.5117,147.31,147.29,0.8418073]
[1718155032390,2.5118,147.3,147.29,0.8418073]
[1718155032577,7.5355,147.3,147.29,0.8418073]
[1718155033163,15.0711,147.3,147.29,0.8418073]
[1718155033716,7.5355,147.3,147.29,0.8418073]
[1718155034391,15.0711,147.3,147.29,0.8418073]
[1718155035008,30.7955,147.3,147.29,0.8418073]
[1718155035209,25.7718,147.3,147.29,0.8418073]
[1718155035991,38.7203,147.33,147.29,0.8418073]
[1718155036196,2.5114,147.33,147.3,2.5118]
[1718155036397,16.3115,147.38,147.29,0.8418073]
[1718155036827,2.5113,147.34,147.29,3.3538073]
[1718155037095,2.5115,147.32,147.29,0.8418073]
[1718155037298,2.5117,147.31,147.29,0.8418073]
[1718155037573,2.5118,147.3,147.29,0.8418073]
[1718155038201,25.1186,147.3,147.29,0.8418073]
[1718155038405,25.1186,147.3,147.19,3.3674]
[1718155038406,2.513,147.24,147.19,3.3674]
[1718155038600,2.513,147.23,147.19,3.3674]
[1718155038824,2.5129,147.24,147.2,2.5135]
[1718155039107,2.5127,147.25,147.2,2.5135]
[1718155039310,28.2847,147.27,147.18,2.5137]
[1718155039503,28.2847,147.27,147.19,2.5137]
[1718155039701,2.513,147.23,147.18,2.5138]
[1718155041522,2.5129,147.24,147.17,5.0281]
[1718155042016,2.513,147.23,147.18,2.5138]
[1718155043205,2.5129,147.24,147.19,2.5137]
[1718155043825,5.0254,147.26,147.15,5.0288]
[1718155044024,2.5131,147.23,147.18,2.5139]
[1718155044324,2.513,147.24,147.19,2.5137]
[1718155044706,2.513,147.23,147.19,2.5137]
[1718155044926,12.5621,147.27,147.19,2.5137]
[1718155045136,2.5132,147.23,147.18,2.5138]
[1718155045923,2.5129,147.24,147.19,2.5137]
[1718155046217,5.0245,147.28,147.21,2.5132]
[1718155046526,2.5126,147.26,147.21,2.5132]
[1718155047237,2.5127,147.25,147.21,2.5132]
[1718155047836,2.5126,147.26,147.22,2.5132]
[1718155048812,2.5128,147.25,147.21,2.5133]
[1718155049820,2.5137,147.19,147.15,2.5142]
[1718155050016,10.0534,147.22,147.12,100.0]
[1718155050217,17.5931,147.22,147.12,105.0297]
[1718155050425,2.5138,147.19,147.15,2.5144]
[1718155050724,2.5144,147.15,147.14,0.8418073]
[1718155050928,2.5143,147.16,147.14,0.8418073]
[1718155051138,2.5144,147.15,147.14,0.8418073]
[1718155051348,2.5144,147.15,147.14,0.3418073]
[1718155051712,2.5142,147.16,147.14,0.3418073]
[1718155051919,25.7642,147.21,147.14,0.3418073]
[1718155052222,15.7102,147.21,147.14,0.3418073]
[1718155052429,2.5139,147.18,147.14,0.3418073]
[1718155052832,2.5142,147.17,147.14,0.3418073]
[1718155053031,2.5139,147.18,147.14,0.3418073]
[1718155053342,33.3045,147.21,147.14,0.3418073]
[1718155053527,5.0273,147.2,147.14,0.3418073]
[1718155053730,2.5137,147.19,147.14,0.3418073]
[1718155053963,15.4233,147.25,147.14,1.19379145]
[1718155054247,2.5132,147.22,147.17,2.514]
[1718155054941,2.5134,147.21,147.16,2.5142]
[1718155055141,120.34,147.23,147.14,0.3418073]
[1718155055342,2.5143,147.16,147.14,0.3418073]
[1718155055641,2.5141,147.17,147.14,0.3418073]
[1718155056036,2.5137,147.19,147.14,2.8563073]
[1718155056447,2.5136,147.2,147.15,2.5144]
[1718155056952,5.0261,147.23,147.14,6.8522073]
[1718155056953,2.5137,147.19,147.14,9.3667073]
[1718155057247,2.5141,147.17,147.14,0.3418073]
[1718155057626,2.514,147.18,147.14,0.3418073]
[1718155057831,2.514,147.18,147.14,2.8564073]
[1718155058046,2.5138,147.19,147.14,2.8564073]
[1718155058343,2.5138,147.19,147.14,9.4043073]
[1718155058545,2.5134,147.21,147.15,2.5143]
[1718155058752,2.5134,147.21,147.16,9.0621]
[1718155059242,2.5135,147.2,147.16,9.0621]
[1718155059852,2.5138,147.19,147.16,6.5479]
[1718155060060,2.5139,147.18,147.14,2.8563073]
[1718155060251,2.5139,147.18,147.14,9.4042073]
[1718155060660,2.5138,147.19,147.14,9.4042073]
[1718155060963,2.5139,147.18,147.14,6.8897073]
[1718155061131,2.5141,147.17,147.14,0.3418073]
[1718155061731,2.514,147.18,147.14,2.8563073]
[1718155062534,2.5143,147.16,147.14,0.3418073]
[1718155062734,2.5139,147.18,147.14,0.3418073]
[1718155063044,2.5138,147.19,147.14,2.8563073]
[1718155063346,2.5138,147.19,147.15,2.5144]
[1718155063553,2.5136,147.2,147.15,2.5144]
[1718155063941,33.0127,147.25,147.16,6.4884]
[1718155064169,2.5131,147.23,147.18,2.5138]
[1718155064346,22.9615,147.25,147.17,2.5139]
[1718155064657,2.5136,147.2,147.15,6.4884]
[1718155064960,2.5137,147.19,147.15,9.0027]
[1718155065147,2.5136,147.2,147.15,9.0027]
[1718155065546,2.5138,147.19,147.15,9.0027]
[1718155065758,2.5141,147.17,147.14,0.3418073]
[1718155066258,2.514,147.18,147.14,0.3418073]
[1718155066959,1536.20571421,147.2,147.15,2.5142]
[1718155067161,2.5138,147.19,147.15,2.5142]
[1718155067479,2.5139,147.18,147.14,6.6370073]
[1718155067646,2.5142,147.17,147.14,6.6370073]
[1718155068048,2.5142,147.17,147.14,0.3418073]
[1718155068669,2.514,147.18,147.14,0.3418073]
[1718155068888,2.514,147.18,147.14,2.8563073]
[1718155069563,1538.71941421,147.2,147.15,6.1182]
[1718155069777,1536.20571421,147.2,147.15,6.1182]
[1718155069938,2.5139,147.18,147.15,6.1182]
[1718155070560,2.5138,147.19,147.15,8.6326]
[1718155070943,2.5138,147.19,147.15,6.1182]
[1718155071759,1536.20571421,147.2,147.15,6.1182]
[1718155072160,1536.20571421,147.2,147.14,12.9144073]
[1718155072376,1536.20571421,147.2,147.14,19.0637073]
[1718155072658,1536.20571421,147.2,147.16,8.6634]
[1718155073350,1536.20571421,147.2,147.17,6.1493]
[1718155073659,1536.20571421,147.2,147.16,5.8821]
[1718155073865,1536.20571421,147.2,147.19,6.1493]
[1718155074253,1536.20571421,147.2,147.19,8.663]
[1718155075163,1536.20571421,147.2,147.19,31.7967]
[1718155075348,1536.20571421,147.2,147.19,31.9667]
[1718155076067,1536.20571421,147.2,147.19,9.343]
[1718155076268,1536.20571421,147.2,147.19,9.173]
[1718155078164,1536.20571421,147.2,147.19,6.6593]
[1718155078663,1536.20571421,147.2,147.19,9.173]
[1718155082366,1536.20571421,147.2,147.19,9.343]
[1718155082874,1536.20571421,147.2,147.19,31.9667]
[1718155085253,1536.20571421,147.2,147.19,131.9667]
[1718155089885,1536.20571421,147.2,147.19,31.9667]
[1718155090591,1536.20571421,147.2,147.19,8.663]
[1718155090791,1536.20571421,147.2,147.19,2.5137]
[1718155090969,1536.20571421,147.2,147.19,31.613]
[1718155091996,1536.20571421,147.2,147.19,31.953]
[1718155092183,1536.20571421,147.2,147.19,2.5137]
[1718155093293,1536.20571421,147.2,147.17,2.5139]
[1718155093592,1536.20571421,147.2,147.18,2.5138]
[1718155093915,1536.20571421,147.2,147.19,2.5137]
[1718155094390,1536.20571421,147.2,147.18,2.5138]
[1718155094584,1536.20571421,147.2,147.19,2.5137]
[1718155095375,1536.20571421,147.2,147.15,0.17]
[1718155095585,1536.20571421,147.2,147.19,2.5137]
[1718155098797,1536.20571421,147.2,147.18,2.5138]
[1718155099978,1536.20571421,147.2,147.19,2.5137]
[1718155100178,1536.20571421,147.2,147.17,2.684]
[1718155100381,1536.20571421,147.2,147.18,2.5138]
[1718155100595,1536.20571421,147.2,147.19,2.5137]
[1718155100800,1536.20571421,147.2,147.18,2.5138]
[1718155101299,1536.20571421,147.2,147.19,7.5412]
[1718155101492,1536.20571421,147.2,147.19,2.5137]
[1718155101997,1538.71931421,147.2,147.16,2.6842]
[1718155102198,1536.20571421,147.2,147.14,0.3418073]
[1718155102409,1536.20571421,147.2,147.14,2.8562073]
[1718155102410,2.514,147.18,147.14,2.8562073]
[1718155102607,2.5141,147.17,147.14,0.3418073]
[1718155103411,2.5139,147.18,147.14,2.8563073]
[1718155104103,6.0701,147.19,147.15,2.5144]
[1718155104104,8.5839,147.19,147.15,2.5144]
[1718155105697,6.0701,147.19,147.16,2.5142]
[1718155105983,1538.71931421,147.2,147.16,2.5142]
[1718155106706,1538.71921421,147.2,147.16,2.5142]
[1718155108898,2.5142,147.17,147.14,0.3418073]
[1718155109293,8.792,147.18,147.14,2.8564073]
[1718155109904,2.5141,147.17,147.14,0.3418073]
[1718155110085,5.0282,147.17,147.14,0.3418073]
[1718155110288,2.5141,147.17,147.14,0.3418073]
[1718155111113,6.278,147.18,147.14,0.3418073]
[1718155111301,8.7919,147.18,147.14,2.8563073]
[1718155111790,1536.20571421,147.2,147.14,0.3418073]
[1718155111998,6.4559,147.19,147.14,2.8563073]
[1718155112308,8.9699,147.18,147.14,2.8563073]
[1718155112500,6.4559,147.18,147.14,2.8563073]
[1718155112682,8.9699,147.18,147.14,2.8563073]
[1718155112890,2.5141,147.17,147.14,0.3418073]
[1718155113104,2.5141,147.17,147.14,2.8564073]
[1718155114011,2.5141,147.17,147.14,0.3418073]
[1718155114311,2.5142,147.16,147.14,0.3418073]
[1718155114612,2.5141,147.17,147.14,0.3418073]
[1718155115118,2.5141,147.17,147.14,2.8564073]
[1718155116001,2.5141,147.17,147.14,0.3418073]
[1718155116901,2.5144,147.15,147.14,0.3418073]
[1718155117924,15.6696,147.17,147.14,0.3418073]
[1718155118095,2.5142,147.16,147.14,0.3418073]
[1718155118286,2.5144,147.15,147.14,0.3418073]
[1718155119294,9.1371,147.15,147.14,0.3418073]
[1718155119693,2.5144,147.15,147.14,0.3418073]
[1718155120697,2.5143,147.16,147.14,0.3418073]
[1718155120915,9.0116,147.15,147.14,0.3418073]
[1718155121495,2.5156,147.08,147.03,0.8538]
[1718155121695,2.5156,147.08,147.0,29.0498]
[1718155122039,20.3658,147.11,147.01,12.5835]
[1718155122040,2.5155,147.09,147.01,12.5835]
[1718155122330,2.5161,147.05,147.0,10.0]
[1718155122625,6.4972,147.01,147.0,10.0]
[1718155122836,9.014,147.01,147.0,10.0]
[1718155123333,8.7699,147.01,147.0,10.0]
[1718155123528,13.8035,147.01,147.0,10.0]
[1718155123824,8.7699,147.01,147.0,10.0]
[1718155124035,6.2531,147.04,147.0,10.0]
[1718155124326,6.2531,147.03,147.0,10.0]
[1718155124496,8.7699,147.01,147.0,10.0]
[1718155125516,6.5112,147.04,147.0,10.0]
[1718155126095,2.5164,147.03,147.0,10.0]
[1718155126533,6.5112,147.04,147.0,10.0]
[1718155126725,15.3354,147.05,147.0,12.5168]
[1718155126900,8.8489,147.07,147.01,2.5168]
[1718155127307,2.516,147.06,147.01,2.5168]
[1718155127535,8.8489,147.07,147.01,2.5168]
[1718155127698,2.5156,147.08,147.0,10.0]
[1718155127897,6.3331,147.1,147.02,0.17]
[1718155128139,2.5153,147.1,147.02,0.51]
[1718155128308,15.8075,147.13,147.03,0.17]
[1718155128507,6.4743,147.14,147.05,0.17]
[1718155128824,16.1803,147.17,147.1,2.5152]
[1718155129031,2.5143,147.16,147.1,2.5152]
[1718155129407,2.5144,147.15,147.1,2.5152]
[1718155129608,16.1803,147.17,147.08,0.17]
[1718155129810,16.1803,147.17,147.07,0.34]
[1718155130018,2.5149,147.12,147.07,2.5157]
[1718155130741,2.5145,147.15,147.08,0.17]
[1718155130903,2.5144,147.16,147.1,2.5152]
[1718155131300,2.5144,147.16,147.11,2.515]
[1718155131495,2.5142,147.16,147.1,2.5152]
[1718155131728,2.5144,147.15,147.1,2.5152]
[1718155132021,2.5143,147.16,147.1,2.5152]
[1718155132209,2.5143,147.16,147.11,2.515]
[1718155132415,1063.23661421,147.0,146.99,1.0118073]
[1718155132721,1006.77661421,147.0,146.99,78.19250725]
[1718155132926,1006.77661421,147.0,146.99,92.37270725]
[1718155134141,1006.77661421,147.0,146.99,21.21120725]
[1718155134308,1006.77661421,147.0,146.99,3.3589073]
[1718155135928,1006.77661421,147.0,146.99,8.3932073]
[1718155136420,1006.77661421,147.0,146.99,8.5632073]
[1718155136642,1006.77661421,147.0,146.99,8.7332073]
[1718155136845,1006.77661421,147.0,146.99,26.3534073]
[1718155137213,1006.77661421,147.0,146.99,8.9032073]
[1718155137418,1006.77661421,147.0,146.99,3.6989073]
[1718155137952,1006.77661421,147.0,146.99,4.0389073]
[1718155139050,1006.77661421,147.0,146.98,2.5173]
[1718155139219,1006.77661421,147.0,146.99,2.5171]
[1718155140646,1006.77661421,147.0,146.99,2.6871]
[1718155140849,1006.77661421,147.0,146.99,2.5171]
[1718155141437,1006.77661421,147.0,146.99,7.7214]
[1718155141626,1006.77661421,147.0,146.99,25.8516]
[1718155141824,1006.77661421,147.0,146.99,18.3001]
[1718155142063,1006.77661421,147.0,146.99,8.0614]
[1718155142536,1006.77661421,147.0,146.99,25.6816]
[1718155142849,1006.77661421,147.0,146.99,25.8516]
[1718155146027,1006.77661421,147.0,146.99,8.0614]
[1718155146345,1006.77661421,147.0,146.99,2.5171]
[1718155148551,1013.39711421,147.0,146.98,2.5172]
[1718155148853,6.6205,146.99,146.96,2.5176]
[1718155149066,6.6205,146.99,146.97,2.5175]
[1718155149431,6.6205,146.99,146.98,2.5173]
[1718155149635,6.6205,146.99,146.97,2.5174]
[1718155149833,6.6205,146.99,146.98,2.5173]
[1718155151256,1006.77661421,147.0,146.99,2.5171]
[1718155153235,1006.77661421,147.0,146.99,2.6871]
[1718155154355,1006.77661421,147.0,146.99,15.2729]
[1718155154649,1006.77661421,147.0,146.99,25.8516]
[1718155157641,1006.77661421,147.0,146.99,48.60089995]
[1718155158068,1006.77661421,147.0,146.99,28.60089995]
[1718155158453,1006.77661421,147.0,146.99,28.09089995]
[1718155159547,1006.77661421,147.0,146.99,2.5171]
[1718155160357,1006.77661421,147.0,146.99,17.6201]
[1718155160559,1006.77661421,147.0,146.99,25.1716]
[1718155161266,1006.77661421,147.0,146.99,25.8516]
[1718155162471,1006.77661421,147.0,146.99,25.6816]
[1718155162640,1006.77661421,147.0,146.99,25.5116]
[1718155163389,1006.77661421,147.0,146.99,2.8571]
[1718155163669,1006.77661421,147.0,146.99,25.3416]
[1718155164002,1006.77661421,147.0,146.99,25.8516]
[1718155164350,1006.77661421,147.0,146.99,7.5514]
[1718155164563,1006.77661421,147.0,146.98,2.5173]
[1718155164768,6.1403,146.99,146.98,2.5173]
[1718155166682,6.1403,146.99,146.98,15.1039]
[1718155167075,6.1403,146.99,146.98,7.5519]
[1718155167662,1006.77661421,147.0,146.99,7.5514]
[1718155167861,1006.77661421,147.0,146.99,25.1716]
[1718155168579,1006.77661421,147.0,146.99,25.5116]
[1718155169019,1006.77661421,147.0,146.99,20.1373]
[1718155169283,6.2059,146.99,146.98,2.5173]
[1718155170063,1006.77661421,147.0,146.99,2.5171]
[1718155171285,1012.97181421,147.0,146.99,2.5171]
[1718155172289,1006.77661421,147.0,146.99,2.5171]